bitfinex/quotes_ETHUSD_20250406
["timestamp","ask_amount","ask_price","bid_price","bid_amount"]
[1743958413417,3.55,1742.1,1741.9,4.01858]
[1743958414329,0.13306034,1742.0,1741.8,9.64867]
[1743958414509,0.13306034,1742.0,1741.9,4.0186]
[1743958415537,3.7902,1742.5,1742.3,4.01753]
[1743958415538,0.7902,1742.5,1742.3,4.01753]
[1743958415694,0.7902,1742.5,1742.2,9.64982]
[1743958415899,0.1320875,1742.4,1742.2,9.64982]
[1743958416233,0.1320875,1742.4,1742.3,4.01767]
[1743958417748,0.1320875,1742.4,1742.2,9.64976]
[1743958418303,0.55,1742.3,1742.1,4.01803]
[1743958418510,0.6820875,1742.4,1742.3,4.01767]
[1743958418703,3.7902,1742.5,1742.3,4.01767]
[1743958418904,3.0,1742.5,1742.3,4.01767]
[1743958419143,3.0,1742.5,1742.4,4.01744]
[1743958420327,0.55,1742.4,1742.2,4.01788]
[1743958420531,0.55,1742.4,1742.1,8.03609]
[1743958420746,0.55,1742.4,1742.2,4.01788]
[1743958421540,0.55,1742.4,1742.2,4.01775]
[1743958421784,0.55,1742.4,1742.1,13.65922]
[1743958422084,0.55,1742.4,1742.1,9.64111]
[1743958422242,0.55,1742.4,1742.1,13.65916]
[1743958422694,0.55,1742.4,1742.2,8.03556]
[1743958422877,7.34275076,1742.5,1742.3,4.01767]
[1743958423079,7.04275076,1742.5,1742.3,4.01758]
[1743958423543,7.04275076,1742.5,1742.3,8.03516]
[1743958423788,3.0,1742.5,1742.3,8.03516]
[1743958424452,3.0,1742.5,1742.3,4.01758]
[1743958424755,7.04275076,1742.5,1742.2,4.01788]
[1743958424933,12.04982845,1742.5,1742.1,13.65912]
[1743958425134,8.03250845,1742.5,1742.2,4.0179]
[1743958425870,8.03250845,1742.5,1742.2,4.0178]
[1743958426238,8.03250845,1742.5,1742.2,8.03556]
[1743958426745,8.03250845,1742.5,1742.3,4.01756]
[1743958426951,7.59275076,1742.5,1742.4,4.01744]
[1743958427245,3.0,1742.6,1742.4,4.01744]
[1743958427450,4.83025076,1742.9,1742.5,4.01721]
[1743958427655,1.2224067,1743.1,1742.7,4.01675]
[1743958427948,3.0,1742.9,1742.8,4.01637]
[1743958428161,3.7875,1743.1,1742.8,4.01637]
[1743958428467,4.04275076,1742.9,1742.6,4.01697]
[1743958428862,4.04275076,1742.9,1742.6,8.03381]
[1743958429066,3.0,1742.8,1742.6,4.01684]
[1743958429254,3.0,1742.8,1742.7,4.01673]
[1743958429457,3.0,1742.8,1742.6,4.01684]
[1743958429664,3.70427508,1742.8,1742.5,9.6302]
[1743958429946,0.55,1742.7,1742.4,4.83912]
[1743958430140,4.59275076,1742.7,1742.4,4.01742]
[1743958430380,4.59275076,1742.7,1742.4,4.01729]
[1743958430761,8.60959076,1742.7,1742.3,4.01765]
[1743958430939,3.55,1742.5,1742.2,9.62988]
[1743958431147,12.36734076,1742.5,1742.2,5.612]
[1743958431467,8.32459,1742.5,1742.2,5.612]
[1743958431667,8.32459,1742.5,1742.2,9.6299]
[1743958431854,5.62756491,1742.5,1742.2,13.64765]
[1743958432239,5.62756491,1742.5,1742.2,9.62975]
[1743958432439,9.64486491,1742.5,1742.1,9.63013]
[1743958432643,9.64486491,1742.5,1742.1,13.64811]
[1743958433072,5.62756491,1742.5,1742.2,4.01789]
[1743958433286,9.64478491,1742.5,1742.2,4.01789]
[1743958433875,3.55,1742.3,1742.0,9.63235]
[1743958434077,3.55,1742.3,1742.0,5.614]
[1743958434275,7.5677,1742.3,1741.9,9.63045]
[1743958434477,3.55,1742.3,1742.0,4.0182]
[1743958434677,4.40319485,1742.3,1742.0,4.0182]
[1743958434870,4.40319485,1742.3,1742.0,8.03642]
[1743958435177,4.40319485,1742.3,1742.0,4.0182]
[1743958435359,4.40319485,1742.3,1742.1,4.0181]
[1743958435882,3.55,1742.3,1742.1,8.03609]
[1743958436086,3.55,1742.3,1742.1,8.03599]
[1743958436256,5.07756491,1742.5,1742.3,4.01765]
[1743958436449,5.07756491,1742.5,1742.2,4.0179]
[1743958436652,0.50775649,1742.4,1742.2,4.0179]
[1743958436852,0.50775649,1742.4,1742.2,8.03567]
[1743958437581,3.0,1742.5,1742.3,4.01767]
[1743958437753,3.0,1742.5,1742.3,8.03519]
[1743958438485,3.55,1742.5,1742.4,4.01744]
[1743958438686,3.55,1742.5,1742.3,4.01752]
[1743958439184,3.55,1742.5,1742.3,4.01751]
[1743958439385,3.905,1742.5,1742.3,4.01751]
[1743958439879,3.0,1742.5,1742.4,4.01744]
[1743958440961,3.0,1742.8,1742.5,4.01707]
[1743958441158,3.0,1742.8,1742.5,4.82747]
[1743958441367,0.55,1742.5,1742.3,5.6]
[1743958442192,3.8209,1742.6,1742.3,5.6]
[1743958442368,0.8209,1742.8,1742.6,4.01687]
[1743958442695,3.0,1742.9,1742.6,4.01687]
[1743958442867,3.8209,1742.9,1742.6,4.01687]
[1743958443256,11.09312808,1743.1,1742.7,4.01661]
[1743958443673,6.63949873,1743.1,1742.8,4.01638]
[1743958443874,5.81859873,1743.1,1742.9,4.01614]
[1743958444078,3.0,1743.0,1742.9,4.01614]
[1743958444293,0.8209,1743.3,1742.9,4.01614]
[1743958444596,3.55,1743.2,1742.9,4.01626]
[1743958444769,3.8209,1743.3,1743.0,4.01587]
[1743958444976,0.8209,1743.3,1743.0,4.01588]
[1743958445159,0.8209,1743.3,1743.1,4.0158]
[1743958445363,4.01495,1743.5,1743.1,4.0158]
[1743958445565,4.0152,1743.4,1743.0,4.01606]
[1743958445763,3.0,1743.3,1743.0,4.01606]
[1743958446297,4.01584,1743.1,1742.7,13.64521]
[1743958446491,3.940256,1743.1,1742.8,4.01652]
[1743958446695,3.0,1743.1,1742.8,8.03292]
[1743958446918,3.0,1743.1,1742.8,4.0164]
[1743958447070,3.0,1743.1,1742.8,8.03283]
[1743958447265,3.0,1743.1,1742.9,4.01621]
[1743958447464,3.0,1743.1,1742.9,8.03233]
[1743958448101,1.3709,1743.2,1743.0,4.01606]
[1743958448406,0.55,1743.2,1742.9,4.01617]
[1743958448570,3.8209,1743.4,1743.1,4.01574]
[1743958448765,0.7587,1743.6,1743.2,4.01548]
[1743958448973,0.7587,1743.6,1743.3,4.01514]
[1743958449266,3.0,1743.7,1743.4,4.01512]
[1743958449466,5.8478704,1743.7,1743.3,4.01514]
[1743958449665,0.55,1743.6,1743.2,4.0156]
[1743958449897,0.55,1743.6,1743.4,4.01511]
[1743958450115,0.55,1743.6,1743.3,4.01531]
[1743958450315,8.8477204,1743.7,1743.3,4.01531]
[1743958450608,0.55,1743.6,1743.3,4.01522]
[1743958450914,0.55,1743.6,1743.4,4.01512]
[1743958451411,0.55,1743.6,1743.3,8.03044]
[1743958451613,4.8332604,1743.7,1743.5,4.01486]
[1743958452018,4.8332604,1743.7,1743.3,4.79305]
[1743958452172,8.8478504,1743.7,1743.3,4.79305]
[1743958452371,4.01493,1743.5,1743.1,4.79346]
[1743958452573,1.43478504,1743.6,1743.1,6.3798]
[1743958452883,4.7759,1743.5,1743.1,6.3798]
[1743958453705,4.56523,1743.4,1743.1,5.602]
[1743958453911,4.56523,1743.4,1742.9,4.79403]
[1743958454207,7.77675,1743.1,1742.6,14.41144]
[1743958454403,3.0,1743.0,1742.7,4.01664]
[1743958454882,3.0,1743.0,1742.8,4.01651]
[1743958455085,7.77644,1743.3,1742.8,4.01651]
[1743958455671,11.79199,1743.3,1742.8,4.01651]
[1743958456073,11.79199,1743.3,1742.9,0.832]
[1743958456074,7.77644,1743.3,1742.9,0.832]
[1743958456274,4.77644,1743.3,1742.9,4.84818]
[1743958456969,8.79199,1743.3,1742.9,4.84818]
[1743958457383,4.01569,1743.2,1742.8,4.01652]
[1743958457586,4.01569,1743.2,1742.8,8.03289]
[1743958458477,4.01569,1743.2,1742.8,4.01637]
[1743958459321,4.01569,1743.2,1742.8,8.03273]
[1743958459703,7.56516,1743.4,1742.9,4.01627]
[1743958459889,3.0,1743.5,1743.0,6.436]
[1743958460095,4.01481,1743.6,1743.2,4.01541]
[1743958460309,3.0,1743.5,1743.2,8.03086]
[1743958460490,4.01481,1743.6,1743.2,8.03086]
[1743958461024,7.01502,1743.5,1743.1,4.01583]
[1743958461423,7.01502,1743.5,1743.1,5.599]
[1743958461599,7.83132,1743.5,1743.1,5.599]
[1743958461793,0.55,1743.4,1743.1,5.599]
[1743958461992,4.01554,1743.3,1743.1,5.599]
[1743958462198,7.01515,1743.4,1743.1,5.599]
[1743958462424,3.0,1743.4,1743.1,9.61478]
[1743958462619,7.01516,1743.4,1743.1,6.431]
[1743958463397,11.03052,1743.4,1743.1,6.431]
[1743958463700,4.56537,1743.3,1743.1,5.599]
[1743958464629,7.0156,1743.2,1742.8,4.0165]
[1743958464814,11.03136,1743.2,1742.8,4.0165]
[1743958465932,4.01592,1743.1,1742.7,0.832]
[1743958466596,4.01592,1743.1,1742.6,9.6118]
[1743958467021,0.55,1743.1,1742.8,4.01647]
[1743958467223,3.0,1743.2,1742.9,4.84818]
[1743958467599,7.01561,1743.2,1742.9,4.84818]
[1743958467798,7.01561,1743.2,1742.8,4.01652]
[1743958468017,4.0166,1742.8,1742.4,4.84942]
[1743958468400,8.58281,1742.9,1742.5,4.01717]
[1743958468932,4.83237,1743.0,1742.6,4.01684]
[1743958469310,8.8486,1743.0,1742.5,4.01721]
[1743958469694,4.01631,1742.9,1742.5,4.01721]
[1743958470638,4.83237,1743.0,1742.6,4.01686]
[1743958470929,3.0,1743.0,1742.7,4.82954]
[1743958471111,3.0,1743.0,1742.8,0.05737346]
[1743958471297,3.0,1743.0,1742.7,4.82946]
[1743958471502,4.0159,1743.1,1742.7,4.82946]
[1743958471732,3.0,1743.0,1742.7,4.82946]
[1743958472536,4.01606,1743.0,1742.7,0.8128]
[1743958472914,4.01606,1743.0,1742.7,6.4118]
[1743958473116,4.56624,1743.0,1742.7,5.599]
[1743958474512,4.01631,1742.9,1742.7,5.599]
[1743958474706,3.55,1743.0,1742.7,9.61571]
[1743958475115,3.0,1743.0,1742.8,0.8128]
[1743958476841,4.83191,1743.2,1742.8,4.82926]
[1743958477024,8.84766,1743.2,1742.8,4.82926]
[1743958477617,4.83191,1743.2,1742.8,8.84572]
[1743958477917,7.01539,1743.3,1742.9,4.0162]
[1743958478748,11.03092,1743.3,1742.9,4.0162]
[1743958479054,8.03135,1743.2,1742.8,4.8293]
[1743958479745,4.0156,1743.2,1742.8,8.84569]
[1743958480149,7.01539,1743.3,1742.9,4.01623]
[1743958480354,4.0156,1743.2,1742.9,4.01623]
[1743958480657,4.01591,1743.1,1742.8,0.8128]
[1743958481014,8.0319,1743.1,1742.8,0.8128]
[1743958482455,4.0161,1743.0,1742.6,8.03382]
[1743958482764,4.0161,1743.0,1742.7,5.582]
[1743958482913,4.0161,1743.0,1742.7,4.01674]
[1743958483321,8.03237,1743.0,1742.6,10.39127]
[1743958483651,4.0161,1743.0,1742.6,10.39127]
[1743958483839,0.55,1743.0,1742.7,4.01667]
[1743958484241,4.56606,1743.0,1742.6,14.40812]
[1743958484449,4.56606,1743.0,1742.7,4.01671]
[1743958484619,4.8003,1743.1,1742.7,4.01671]
[1743958484819,8.81629,1743.1,1742.7,4.01671]
[1743958485551,4.01607,1743.0,1742.7,4.01671]
[1743958486257,4.01607,1743.0,1742.6,10.39125]
[1743958486552,8.03228,1743.0,1742.6,10.39125]
[1743958486951,4.01607,1743.0,1742.6,10.39125]
[1743958488549,4.01607,1743.0,1742.5,4.01719]
[1743958488550,4.56643,1742.9,1742.5,4.01719]
[1743958488752,4.01655,1742.8,1742.5,4.01719]
[1743958488937,8.03323,1742.8,1742.4,9.58542]
[1743958489139,4.01685,1742.7,1742.3,0.7944]
[1743958489347,4.01698,1742.6,1742.2,9.58568]
[1743958489732,4.01698,1742.6,1742.1,0.7944]
[1743958489733,4.01698,1742.6,1742.1,4.81238]
[1743958489928,4.01698,1742.6,1742.2,4.01788]
[1743958490343,8.03412,1742.6,1742.2,4.01788]
[1743958490923,3.7844,1742.8,1742.3,0.0573903]
[1743958491122,3.7844,1742.8,1742.5,4.01707]
[1743958491422,0.7609,1743.0,1742.6,4.01678]
[1743958491655,3.7609,1743.0,1742.7,4.01674]
[1743958492153,7.777,1743.0,1742.6,4.01678]
[1743958493951,3.7609,1743.0,1742.7,4.01672]
[1743958494254,6.36859873,1743.1,1742.8,4.01637]
[1743958494552,0.55,1743.1,1742.8,4.01637]
[1743958494727,3.55,1743.1,1742.8,4.01637]
[1743958495367,7.56586,1743.1,1742.8,4.01637]
[1743958496457,7.56586,1743.1,1742.7,4.82788]
[1743958497665,7.56586,1743.1,1742.7,8.8445]
[1743958498767,7.56586,1743.1,1742.8,4.01652]
[1743958499058,0.7609,1743.2,1743.0,4.01606]
[1743958499367,3.7609,1743.2,1742.9,4.01629]
[1743958499929,7.77651,1743.2,1742.8,4.01646]
[1743958500661,7.77651,1743.2,1742.8,8.03284]
[1743958501063,7.77651,1743.2,1742.8,4.01638]
[1743958501360,7.77651,1743.2,1742.8,8.03276]
[1743958501538,7.77651,1743.2,1742.7,0.8112]
[1743958501539,3.7609,1743.2,1742.9,4.01609]
[1743958501738,3.0,1743.2,1743.0,4.01601]
[1743958502139,3.0,1743.2,1742.9,4.01609]
[1743958502545,3.0,1743.2,1742.9,8.03224]
[1743958503266,3.0,1743.2,1742.9,4.01609]
[1743958504565,3.0,1743.2,1742.8,4.0165]
[1743958504566,7.01562,1743.2,1742.8,4.0165]
[1743958504935,7.01562,1743.2,1742.8,4.01642]
[1743958505137,1.3189,1743.1,1742.6,4.01684]
[1743958505338,4.01617,1743.0,1742.6,8.03369]
[1743958505663,4.01617,1743.0,1742.7,4.01671]
[1743958506267,4.0164,1742.9,1742.5,9.58521]
[1743958506474,0.7689,1742.8,1742.5,13.60227]
[1743958506872,0.7689,1742.8,1742.5,9.58506]
[1743958507035,5.26398,1742.8,1742.4,4.01742]
[1743958507240,0.55,1742.7,1742.1,10.40343]
[1743958507465,0.55,1742.7,1742.4,4.01733]
[1743958507868,4.017,1742.6,1742.2,4.01782]
[1743958508047,1.3189,1742.5,1742.1,4.83553]
[1743958508248,1.3189,1742.5,1742.0,4.0183]
[1743958508249,4.01753,1742.4,1742.0,4.0183]
[1743958508468,5.33624,1742.5,1742.0,4.01821]
[1743958508667,4.3189,1742.5,1742.1,4.01802]
[1743958508868,4.3189,1742.5,1742.2,4.0178]
[1743958509241,8.33626,1742.5,1742.1,4.01802]
[1743958509748,8.33626,1742.5,1742.0,4.01835]
[1743958509949,4.01744,1742.4,1742.0,8.03655]
[1743958510154,8.33626,1742.5,1742.1,8.03614]
[1743958510352,8.33626,1742.5,1742.1,4.01807]
[1743958510976,4.3189,1742.5,1742.3,4.01757]
[1743958511271,3.7689,1742.5,1742.2,8.03565]
[1743958511643,3.7689,1742.5,1742.3,4.01765]
[1743958511841,3.7689,1742.5,1742.2,4.01779]
[1743958512072,4.01758,1742.4,1742.0,4.01814]
[1743958512259,0.7847,1742.3,1742.0,4.01814]
[1743958512791,0.55,1742.2,1741.9,4.01853]
[1743958513540,0.55,1742.2,1741.9,4.07593218]
[1743958513745,0.55,1742.2,1741.9,8.09438218]
[1743958514055,0.55,1742.2,1741.9,4.07585218]
[1743958514280,0.55,1742.2,1741.9,8.03695]
[1743958514449,0.55,1742.2,1741.9,4.01845]
[1743958514649,4.56792,1742.2,1741.8,8.0375]
[1743958515170,5.804951,1742.2,1741.8,4.01868]
[1743958515388,1.787031,1742.2,1741.9,4.01859]
[1743958515551,1.787031,1742.2,1741.9,4.01845]
[1743958515751,0.55,1742.2,1742.0,4.01831]
[1743958516160,0.55,1742.2,1741.9,4.01845]
[1743958516481,0.55,1742.2,1741.9,4.01844]
[1743958516683,0.55,1742.2,1741.9,8.03691]
[1743958516885,3.7847,1742.3,1742.0,4.07562211]
[1743958517047,3.7847,1742.3,1742.1,4.018]
[1743958517251,3.7847,1742.3,1742.0,4.01822]
[1743958517864,3.7847,1742.3,1742.1,4.01802]
[1743958518075,3.7847,1742.3,1742.0,4.01822]
[1743958519884,0.7847,1742.3,1742.1,0.05739714]
[1743958520176,0.7847,1742.3,1741.8,4.01883]
[1743958520356,3.0,1742.4,1742.1,4.01801]
[1743958520562,6.59109873,1742.5,1742.2,4.07512385]
[1743958520753,6.59109873,1742.5,1742.2,4.01773]
[1743958521461,8.41193903,1742.5,1742.1,5.569]
[1743958521685,3.55,1742.3,1742.1,5.569]
[1743958521970,3.55,1742.3,1742.1,9.58711]
[1743958522885,3.0,1742.3,1742.1,13.60511]
[1743958523085,3.0,1742.1,1741.3,0.8023]
[1743958523249,7.79141,1741.8,1741.4,4.01953]
[1743958523456,11.8104,1741.8,1741.4,4.01953]
[1743958523866,7.79141,1741.8,1741.4,4.01953]
[1743958524273,0.55,1741.7,1741.3,4.82226]
[1743958524482,8.61939431,1741.7,1741.3,4.01997]
[1743958525083,4.60023431,1741.7,1741.4,4.01966]
[1743958525285,8.61945431,1741.7,1741.3,4.01994]
[1743958525483,4.01929,1741.6,1741.2,13.60906]
[1743958525667,8.61945431,1741.7,1741.3,4.01995]
[1743958526891,3.0,1741.6,1741.2,9.58899]
[1743958527193,8.18131543,1741.6,1741.2,9.58899]
[1743958527386,8.18131543,1741.6,1741.2,13.60903]
[1743958527691,4.16194543,1741.6,1741.2,9.58899]
[1743958527860,3.0,1741.6,1741.4,4.01958]
[1743958528469,3.0,1741.6,1741.5,4.01952]
[1743958528891,3.0,1741.6,1741.4,4.01958]
[1743958529088,0.55,1741.7,1741.5,4.01949]
[1743958530386,10.60992873,1741.8,1741.4,8.09662793]
[1743958530588,7.64660491,1741.8,1741.5,4.01943]
[1743958530770,7.64660491,1741.8,1741.7,4.01906]
[1743958530771,5.81859873,1741.8,1741.7,4.01906]
[1743958530974,0.8118,1742.1,1741.7,8.03812]
[1743958531167,0.813,1742.3,1741.7,0.8076]
[1743958531397,0.813,1742.3,1742.0,4.01826]
[1743958531766,6.63159873,1742.4,1742.1,4.01811]
[1743958531967,3.813,1742.4,1742.1,4.018]
[1743958532167,0.813,1742.4,1742.1,4.018]
[1743958534065,4.83053,1742.4,1742.0,10.3969]
[1743958534401,8.61808431,1742.3,1742.0,5.571]
[1743958535108,8.61808431,1742.3,1742.0,9.58935]
[1743958535280,4.60023431,1742.3,1742.0,9.58935]
[1743958536083,8.61790431,1742.3,1742.0,5.571]
[1743958536898,0.813,1742.4,1742.1,0.0574008]
[1743958537104,0.813,1742.4,1742.1,4.01802]
[1743958537309,0.813,1742.4,1742.2,4.01788]
[1743958537489,0.813,1742.4,1742.2,4.07527257]
[1743958537696,0.813,1742.4,1742.2,4.01788]
[1743958538072,0.813,1742.4,1742.1,4.01802]
[1743958540087,3.0,1742.5,1742.2,4.01777]
[1743958541107,3.0,1742.5,1742.1,4.01811]
[1743958541289,7.01731,1742.5,1742.1,8.03609]
[1743958541490,3.0,1742.5,1742.2,4.01789]
[1743958543211,3.0,1742.5,1742.2,8.03565]
[1743958543711,3.0,1742.5,1742.3,4.01761]
[1743958543914,4.3668,1742.6,1742.3,4.01761]
[1743958548219,4.3668,1742.6,1742.2,4.01788]
[1743958548515,4.01729,1742.5,1742.1,8.03613]
[1743958548919,4.01729,1742.5,1742.2,4.01789]
[1743958549081,8.38386,1742.6,1742.2,4.01789]
[1743958549482,8.38386,1742.6,1742.3,4.01767]
[1743958550110,4.3668,1742.6,1742.3,4.01767]
[1743958551322,4.3668,1742.6,1742.0,10.38675]
[1743958551323,0.7994,1742.8,1742.5,4.01718]
[1743958551509,7.81595,1742.8,1742.5,4.01718]
[1743958551707,7.81595,1742.8,1742.4,10.36689]
[1743958552127,7.81595,1742.8,1742.4,14.38421]
[1743958552425,4.0169,1742.7,1742.4,5.569]
[1743958552628,8.06713431,1742.7,1742.4,5.569]
[1743958552869,5.36638,1742.6,1742.2,4.0179]
[1743958553000,5.36638,1742.6,1742.3,4.01762]
[1743958553530,9.38353,1742.6,1742.2,4.01777]
[1743958553828,3.0,1742.5,1742.2,4.01777]
[1743958554431,0.7994,1742.3,1742.1,5.569]
[1743958554629,0.55,1742.2,1741.9,4.01858]
[1743958554836,0.55,1742.2,1742.0,4.01836]
[1743958555914,0.55,1742.2,1741.9,4.01845]
[1743958556635,0.55,1742.2,1742.0,4.01832]
[1743958556799,0.55,1742.2,1742.0,8.0366]
[1743958557002,0.55,1742.2,1742.0,4.01828]
[1743958557197,0.7994,1742.3,1742.0,8.03648]
[1743958557412,0.7994,1742.3,1742.0,4.0182]
[1743958557938,0.7994,1742.3,1742.0,8.03646]
[1743958558244,0.7994,1742.3,1742.1,4.01812]
[1743958558944,17.32101837,1742.5,1741.9,0.8012]
[1743958558945,9.59819873,1742.5,1742.3,4.01755]
[1743958559095,8.81859873,1742.5,1742.3,4.07494065]
[1743958559299,5.81859873,1742.5,1742.4,4.01744]
[1743958559911,0.7796,1742.7,1742.4,8.03488]
[1743958560110,7.79638,1742.7,1742.3,4.01766]
[1743958560315,7.79638,1742.7,1742.3,8.03519]
[1743958560643,3.7796,1742.7,1742.4,4.01743]
[1743958560833,0.7796,1742.7,1742.4,8.03474]
[1743958561251,0.7796,1742.7,1742.5,4.01716]
[1743958561546,5.81859873,1742.8,1742.5,4.01709]
[1743958561757,11.2515796,1742.8,1742.5,4.01709]
[1743958562309,15.30181391,1742.8,1742.5,4.01709]
[1743958562547,1.3296,1742.7,1742.3,4.01745]
[1743958562759,8.06722431,1742.6,1742.2,9.5869]
[1743958563246,4.79691,1742.5,1742.2,5.569]
[1743958563450,11.61769431,1742.4,1742.2,5.569]
[1743958563851,17.43629304,1742.4,1742.2,5.569]
[1743958564534,9.36859873,1742.4,1742.2,5.569]
[1743958565150,8.81859873,1742.4,1742.2,9.58688]
[1743958565745,8.81859873,1742.4,1742.2,5.569]
[1743958566113,5.81859873,1742.4,1742.2,9.58682]
[1743958566312,5.81859873,1742.4,1742.2,13.60457]
[1743958566751,5.81859873,1742.4,1742.3,4.01767]
[1743958567157,5.81859873,1742.4,1742.2,9.58675]
[1743958567363,6.59819873,1742.4,1742.1,9.58612]
[1743958567520,10.61568873,1742.4,1742.1,5.568]
[1743958568430,8.06809431,1742.3,1741.8,4.01876]
[1743958568616,0.55,1742.2,1741.8,9.58676]
[1743958568818,4.79782,1742.1,1741.7,9.58701]
[1743958569553,0.7796,1742.1,1741.8,0.44050112]
[1743958569719,0.7796,1742.1,1741.8,4.45932112]
[1743958570431,4.79782,1742.1,1741.8,0.44050112]
[1743958570623,4.79782,1742.1,1741.7,9.58696]
[1743958570950,0.7796,1742.1,1741.9,4.01859]
[1743958571151,5.81859873,1742.2,1742.0,4.01836]
[1743958571518,5.81859873,1742.2,1741.9,4.01859]
[1743958571970,5.81859873,1742.2,1741.9,4.01561472]
[1743958572154,9.83662873,1742.2,1741.7,4.01904]
[1743958572343,6.60689873,1742.2,1742.0,4.01823]
[1743958572549,0.55,1742.1,1741.9,4.01858]
[1743958572751,4.56875,1741.9,1741.5,4.0194]
[1743958572954,0.7883,1741.8,1741.6,0.44024436]
[1743958573298,4.80719,1741.8,1741.6,0.44024436]
[1743958574360,3.7883,1741.8,1741.6,0.44024436]
[1743958574568,3.7883,1741.8,1741.5,4.01951]
[1743958575186,3.7883,1741.8,1741.4,9.5886]
[1743958575362,7.80721,1741.8,1741.4,9.5886]
[1743958575880,4.56909,1741.7,1741.3,4.01998]
[1743958576056,8.58832,1741.7,1741.3,4.01998]
[1743958576253,4.01931,1741.6,1741.3,4.01998]
[1743958577081,4.56909,1741.7,1741.3,4.01998]
[1743958577686,0.55,1741.7,1741.4,4.01961]
[1743958578046,3.7883,1741.8,1741.3,0.05742081]
[1743958578246,3.0,1741.8,1741.7,4.01906]
[1743958578458,3.7813,1742.0,1741.5,0.8145]
[1743958578663,0.7813,1742.0,1741.8,4.0187]
[1743958579073,3.7813,1742.0,1741.8,4.0187]
[1743958580704,3.7813,1742.0,1741.7,4.01906]
[1743958581007,7.79967,1742.0,1741.7,4.01906]
[1743958581507,3.7813,1742.0,1741.7,4.01906]
[1743958582598,7.02021,1741.2,1741.1,0.055]
[1743958582814,16.83027788,1741.2,1741.1,1e-05]
[1743958583099,8.3529,1740.6,1740.5,0.005]
[1743958583303,12.40405431,1740.2,1740.1,0.05]
[1743958583464,4.57483,1739.2,1739.1,0.05]
[1743958583663,4.57483,1739.2,1738.7,4.07018739]
[1743958583664,0.55,1739.0,1738.7,4.07018739]
[1743958584006,0.6637,1739.1,1738.8,0.05751456]
[1743958584161,5.81859873,1739.4,1738.9,4.02537]
[1743958584162,0.6637,1739.4,1738.9,4.02537]
[1743958584366,4.71393431,1739.4,1739.0,4.0253]
[1743958584572,4.71393431,1739.4,1738.8,5.909]
[1743958584775,0.7813,1739.8,1739.6,4.02377]
[1743958584975,0.55,1739.7,1739.4,5.921]
[1743958585187,3.0,1739.3,1738.6,0.03236915]
[1743958585380,6.59989873,1739.5,1739.2,4.02466]
[1743958585587,0.7813,1739.5,1738.7,4.84049]
[1743958585899,0.55,1739.6,1739.3,4.0244]
[1743958586073,0.55,1739.6,1739.1,8.04996]
[1743958586265,0.55,1739.6,1739.2,4.0248]
[1743958586464,0.55,1739.6,1739.1,4.02498]
[1743958586666,3.7813,1739.8,1738.8,6.034]
[1743958586916,3.7813,1739.8,1739.4,8.04841]
[1743958587119,3.7813,1739.8,1739.4,4.02416]
[1743958587403,4.79628987,1739.8,1739.4,4.02416]
[1743958587598,4.79628987,1739.8,1739.4,8.04841]
[1743958587797,3.7813,1739.8,1739.5,4.02408]
[1743958587999,3.7813,1739.8,1739.4,8.04841]
[1743958588203,0.55,1739.7,1739.4,4.02416]
[1743958588565,3.7813,1739.8,1739.5,4.024]
[1743958588768,3.7813,1739.8,1739.6,4.02388]
[1743958589175,6.59989873,1740.2,1739.9,4.02308]
[1743958589372,6.59989873,1740.2,1739.8,4.02323]
[1743958589573,0.55,1740.1,1739.9,4.02311]
[1743958589883,6.59989873,1740.2,1739.8,8.04656]
[1743958590070,3.65998987,1740.1,1739.8,4.02323]
[1743958590424,7.43518873,1740.5,1740.2,4.02252]
[1743958590602,1.61659,1740.5,1740.2,4.02252]
[1743958590778,0.7813,1740.5,1740.2,4.02252]
[1743958591123,0.7813,1740.5,1740.3,4.02213]
[1743958591398,0.7813,1740.5,1740.3,4.02209]
[1743958591790,0.7813,1740.5,1740.1,4.02255]
[1743958591990,4.02272,1740.2,1739.6,4.02377]
[1743958592192,3.402272,1740.1,1739.9,4.02303]
[1743958592393,3.0,1740.1,1739.9,4.02303]
[1743958592773,3.0,1740.1,1739.8,3.79063018]
[1743958594304,8.68829166,1740.0,1739.8,3.79063018]
[1743958594507,8.68829166,1740.0,1739.8,7.81397018]
[1743958594911,8.68829166,1740.0,1739.8,3.79063018]
[1743958595206,3.8264,1739.9,1739.6,4.02378]
[1743958595435,3.8264,1739.9,1739.7,4.02357]
[1743958596123,9.64499873,1739.9,1739.7,4.02357]
[1743958596282,18.33329039,1739.9,1739.7,4.02357]
[1743958597218,18.33329039,1739.9,1739.7,4.02355]
[1743958597526,17.50689039,1739.9,1739.8,4.02345]
[1743958598046,14.50689039,1739.9,1739.8,4.02345]
[1743958598439,5.81859873,1739.9,1739.8,4.02345]
[1743958600915,14.4894111,1739.9,1739.8,4.02345]
[1743958601238,14.4894111,1739.9,1739.7,10.04655]
[1743958601538,15.93835221,1739.9,1739.7,10.04655]
[1743958601742,15.93835221,1739.9,1739.7,10.04651]
[1743958601913,10.11975348,1739.9,1739.7,10.04651]
[1743958602309,8.67081237,1739.9,1739.7,10.04651]
[1743958602510,8.67081237,1739.9,1739.8,4.02345]
[1743958603867,5.81859873,1740.1,1739.9,4.02306]
[1743958604032,5.81859873,1740.1,1740.0,4.02298]